[Event "Live Chess"]
[Site "Chess.com"]
[Date "2024.06.01"]
[Round "-"]
[White "FlyingChessKestrel13"]
[Black "vincents82"]
[Result "1/2-1/2"]
[WhiteElo "2081"]
[BlackElo "2045"]
[TimeControl "300"]
[EndTime "15:46:57 PDT"]
[Termination "Game drawn by repetition"]

1. e4 {[%clk 0:04:55.7]} 1... d5 {[%clk 0:04:56.2]} 2. exd5 {[%clk 0:04:54.4]}
2... Qxd5 {[%clk 0:04:55.5]} 3. Nc3 {[%clk 0:04:53.9]} 3... Qd8 {[%clk
0:04:54.6]} 4. Nf3 {[%clk 0:04:52.2]} 4... Bg4 {[%clk 0:04:53.6]} 5. Bc4 {[%clk
0:04:50.3]} 5... e6 {[%clk 0:04:52.8]} 6. O-O {[%clk 0:04:48.3]} 6... Nf6 {[%clk
0:04:52]} 7. d3 {[%clk 0:04:47.1]} 7... c6 {[%clk 0:04:51.3]} 8. Bg5 {[%clk
0:04:45.8]} 8... Be7 {[%clk 0:04:49.9]} 9. Bxf6 {[%clk 0:04:44.5]} 9... Bxf6
{[%clk 0:04:48.8]} 10. Ne4 {[%clk 0:04:44.4]} 10... Be7 {[%clk 0:04:47.7]} 11.
a4 {[%clk 0:04:42.1]} 11... Nd7 {[%clk 0:04:46.8]} 12. c3 {[%clk 0:04:41.4]}
12... a5 {[%clk 0:04:44.4]} 13. h3 {[%clk 0:04:37.9]} 13... Bxf3 {[%clk
0:04:42.5]} 14. Qxf3 {[%clk 0:04:37]} 14... O-O {[%clk 0:04:40.7]} 15. d4 {[%clk
0:04:33.9]} 15... Nf6 {[%clk 0:04:39.8]} 16. Bd3 {[%clk 0:04:32.9]} 16... Nxe4
{[%clk 0:04:38.6]} 17. Qxe4 {[%clk 0:04:32.2]} 17... g6 {[%clk 0:04:38.1]} 18.
f4 {[%clk 0:04:29]} 18... Qd5 {[%clk 0:04:35.6]} 19. Qe2 {[%clk 0:04:26.1]}
19... Rfd8 {[%clk 0:04:27.7]} 20. Bc4 {[%clk 0:04:24.3]} 20... Qd6 {[%clk
0:04:21.5]} 21. Rae1 {[%clk 0:04:22.5]} 21... Bf6 {[%clk 0:04:18.7]} 22. g4
{[%clk 0:04:19.9]} 22... c5 {[%clk 0:04:17.4]} 23. f5 {[%clk 0:04:16.5]} 23...
exf5 {[%clk 0:04:15.7]} 24. gxf5 {[%clk 0:04:15.7]} 24... cxd4 {[%clk
0:04:14.8]} 25. fxg6 {[%clk 0:04:14]} 25... hxg6 {[%clk 0:04:03.9]} 26. Qf3
{[%clk 0:04:09.5]} 26... dxc3 {[%clk 0:03:43.1]} 27. bxc3 {[%clk 0:04:06.7]}
27... Kg7 {[%clk 0:03:31.4]} 28. Re6 {[%clk 0:04:02.5]} 28... Bd4+ {[%clk
0:03:02.8]} 29. cxd4 {[%clk 0:04:01.4]} 29... Qxd4+ {[%clk 0:03:01.6]} 30. Kh1
{[%clk 0:03:59.7]} 30... fxe6 {[%clk 0:02:59]} 31. Qf7+ {[%clk 0:03:48.4]} 31...
Kh6 {[%clk 0:02:43.1]} 32. Rf4 {[%clk 0:03:33.9]} 32... Qd1+ {[%clk 0:02:37.9]}
33. Bf1 {[%clk 0:03:28.6]} 33... Qd5+ {[%clk 0:02:31.4]} 34. Bg2 {[%clk
0:03:26]} 34... Qh5 {[%clk 0:02:18.9]} 35. Qxe6 {[%clk 0:03:14.9]} 35... Rd1+
{[%clk 0:02:06]} 36. Kh2 {[%clk 0:03:13.5]} 36... Rad8 {[%clk 0:01:53.7]} 37.
Qf6 {[%clk 0:03:10.1]} 37... R1d6 {[%clk 0:00:52.4]} 38. Qe7 {[%clk 0:02:56.5]}
38... R6d7 {[%clk 0:00:50.8]} 39. Qf6 {[%clk 0:02:49.8]} 39... Rd6 {[%clk
0:00:49.7]} 40. Qe7 {[%clk 0:02:48.2]} 40... R6d7 {[%clk 0:00:47.2]} 41. Qf6
{[%clk 0:02:41]} 41... Rd6 {[%clk 0:00:45.9]} 1/2-1/2

[Event "Live Chess"]
[Site "Chess.com"]
[Date "2024.06.01"]
[Round "-"]
[White "degringolade64"]
[Black "blunderabit"]
[Result "1-0"]
[WhiteElo "2131"]
[BlackElo "1775"]
[TimeControl "300"]
[EndTime "15:47:00 PDT"]
[Termination "degringolade64 won on time"]

1. e4 {[%clk 0:04:57.1]} 1... c5 {[%clk 0:04:53.4]} 2. Nf3 {[%clk 0:04:55.8]}
2... d6 {[%clk 0:04:52]} 3. Bb5+ {[%clk 0:04:55.2]} 3... Nd7 {[%clk 0:04:47.3]}
4. Ba4 {[%clk 0:04:53.6]} 4... Nf6 {[%clk 0:04:42.5]} 5. O-O {[%clk 0:04:52]}
5... a6 {[%clk 0:04:41]} 6. c4 {[%clk 0:04:50.2]} 6... g6 {[%clk 0:04:37.5]} 7.
Nc3 {[%clk 0:04:46.7]} 7... Bg7 {[%clk 0:04:36.6]} 8. d4 {[%clk 0:04:38.4]} 8...
cxd4 {[%clk 0:04:34]} 9. Nxd4 {[%clk 0:04:38.3]} 9... O-O {[%clk 0:04:32.2]} 10.
Bc2 {[%clk 0:04:15.7]} 10... Qc7 {[%clk 0:04:15.5]} 11. b3 {[%clk 0:04:00.1]}
11... e6 {[%clk 0:04:05.7]} 12. Bb2 {[%clk 0:03:57]} 12... Rd8 {[%clk 0:04:03]}
13. Rc1 {[%clk 0:03:44.7]} 13... Ne5 {[%clk 0:03:35.5]} 14. h3 {[%clk
0:03:41.6]} 14... Nc6 {[%clk 0:03:32.6]} 15. Nce2 {[%clk 0:03:35.2]} 15... Bd7
{[%clk 0:03:25.8]} 16. f4 {[%clk 0:03:21.4]} 16... Rac8 {[%clk 0:02:39.9]} 17.
Bb1 {[%clk 0:03:19.1]} 17... Be8 {[%clk 0:02:24.1]} 18. f5 {[%clk 0:03:15]}
18... e5 {[%clk 0:02:08.6]} 19. Nf3 {[%clk 0:03:07.6]} 19... a5 {[%clk
0:01:59.5]} 20. fxg6 {[%clk 0:02:46.1]} 20... hxg6 {[%clk 0:01:47.5]} 21. Qe1
{[%clk 0:02:36]} 21... Nb4 {[%clk 0:01:31.3]} 22. a3 {[%clk 0:02:32.2]} 22...
Na6 {[%clk 0:01:28.6]} 23. b4 {[%clk 0:02:24.2]} 23... axb4 {[%clk 0:01:24.7]}
24. axb4 {[%clk 0:02:24.1]} 24... Qb6+ {[%clk 0:01:21]} 25. Kh1 {[%clk
0:02:17.4]} 25... Qxb4 {[%clk 0:01:16.7]} 26. Qh4 {[%clk 0:02:03.8]} 26... Qxb2
{[%clk 0:00:34.1]} 27. Rc2 {[%clk 0:01:55.6]} 27... Qb6 {[%clk 0:00:19]} 28. Ng5
{[%clk 0:01:53]} 28... Rd7 {[%clk 0:00:05.8]} 29. Ng3 {[%clk 0:01:48.3]} 1-0

[Event "Live Chess"]
[Site "Chess.com"]
[Date "2024.06.01"]
[Round "-"]
[White "ACM42"]
[Black "CheckThis4"]
[Result "0-1"]
[WhiteElo "2153"]
[BlackElo "2689"]
[TimeControl "300"]
[EndTime "15:47:06 PDT"]
[Termination "CheckThis4 won by resignation"]

1. e4 {[%clk 0:04:57.2]} 1... c5 {[%clk 0:04:57]} 2. Nf3 {[%clk 0:04:56.4]} 2...
Nc6 {[%clk 0:04:51.7]} 3. d4 {[%clk 0:04:55.7]} 3... cxd4 {[%clk 0:04:50.3]} 4.
Nxd4 {[%clk 0:04:55]} 4... Nf6 {[%clk 0:04:49.4]} 5. Nc3 {[%clk 0:04:54.1]} 5...
e5 {[%clk 0:04:47.7]} 6. Ndb5 {[%clk 0:04:53.4]} 6... d6 {[%clk 0:04:45.8]} 7.
Bg5 {[%clk 0:04:51.2]} 7... a6 {[%clk 0:04:41.6]} 8. Na3 {[%clk 0:04:50]} 8...
Be7 {[%clk 0:04:31.5]} 9. Bxf6 {[%clk 0:04:36.8]} 9... gxf6 {[%clk 0:04:26.1]}
10. Qh5 {[%clk 0:04:32.5]} 10... b5 {[%clk 0:04:21.1]} 11. Nd5 {[%clk 0:04:31]}
11... Be6 {[%clk 0:04:15.2]} 12. Bd3 {[%clk 0:04:03.4]} 12... Rc8 {[%clk
0:04:03.7]} 13. O-O {[%clk 0:04:02]} 13... f5 {[%clk 0:02:44.7]} 14. c4 {[%clk
0:03:36.3]} 14... b4 {[%clk 0:02:33]} 15. Nc2 {[%clk 0:03:33.1]} 15... f4 {[%clk
0:02:22.9]} 16. g3 {[%clk 0:02:57.6]} 16... a5 {[%clk 0:02:10.6]} 17. gxf4
{[%clk 0:02:49.7]} 17... Rg8+ {[%clk 0:02:09.1]} 18. Kh1 {[%clk 0:02:47.9]}
18... Bg4 {[%clk 0:02:06.8]} 19. Rg1 {[%clk 0:02:41.6]} 19... Bxh5 {[%clk
0:02:05.7]} 20. Rxg8+ {[%clk 0:02:40.6]} 20... Bf8 {[%clk 0:01:59.7]} 21. Kg2
{[%clk 0:01:21.3]} 21... exf4 {[%clk 0:01:36.5]} 22. Nxf4 {[%clk 0:01:16.6]}
22... Bg6 {[%clk 0:01:32.7]} 23. Nd5 {[%clk 0:01:07.1]} 23... Ne5 {[%clk
0:01:29.5]} 0-1

[Event "Live Chess"]
[Site "Chess.com"]
[Date "2024.06.01"]
[Round "-"]
[White "GEMdzq"]
[Black "TheSmoulderingMaster"]
[Result "1-0"]
[WhiteElo "2302"]
[BlackElo "1726"]
[TimeControl "300"]
[EndTime "15:47:10 PDT"]
[Termination "GEMdzq won by resignation"]

1. e4 {[%clk 0:04:57]} 1... c5 {[%clk 0:04:58.7]} 2. d4 {[%clk 0:04:55.7]} 2...
cxd4 {[%clk 0:04:57.3]} 3. c3 {[%clk 0:04:55.3]} 3... dxc3 {[%clk 0:04:56.2]} 4.
Nxc3 {[%clk 0:04:55.2]} 4... Nc6 {[%clk 0:04:54.8]} 5. Bc4 {[%clk 0:04:55.1]}
5... d6 {[%clk 0:04:54.3]} 6. Nf3 {[%clk 0:04:54.7]} 6... e6 {[%clk 0:04:53.4]}
7. O-O {[%clk 0:04:54]} 7... Nf6 {[%clk 0:04:52.4]} 8. Qe2 {[%clk 0:04:53.7]}
8... e5 {[%clk 0:04:50.7]} 9. Ng5 {[%clk 0:04:44.3]} 9... Be6 {[%clk 0:04:40]}
10. Nxe6 {[%clk 0:04:41]} 10... fxe6 {[%clk 0:04:39.3]} 11. Bxe6 {[%clk
0:04:40.9]} 11... Qe7 {[%clk 0:04:38.6]} 12. Bb3 {[%clk 0:04:38]} 12... g6
{[%clk 0:04:34.9]} 13. Bg5 {[%clk 0:04:36.5]} 13... Bg7 {[%clk 0:04:33.9]} 14.
Nd5 {[%clk 0:04:35.8]} 1-0

[Event "Live Chess"]
[Site "Chess.com"]
[Date "2024.06.01"]
[Round "-"]
[White "IgorSchukin"]
[Black "OurKnightAtTheOpera"]
[Result "0-1"]
[WhiteElo "1706"]
[BlackElo "2001"]
[TimeControl "300"]
[EndTime "15:47:41 PDT"]
[Termination "OurKnightAtTheOpera won by resignation"]

1. e4 {[%clk 0:04:58.1]} 1... e5 {[%clk 0:04:59.1]} 2. Nf3 {[%clk 0:04:57]} 2...
Nc6 {[%clk 0:04:58.5]} 3. Nc3 {[%clk 0:04:56.4]} 3... Nf6 {[%clk 0:04:57.9]} 4.
d4 {[%clk 0:04:55.8]} 4... exd4 {[%clk 0:04:52.1]} 5. Nxd4 {[%clk 0:04:55.2]}
5... Bb4 {[%clk 0:04:51.8]} 6. Nxc6 {[%clk 0:04:53.9]} 6... bxc6 {[%clk
0:04:50.5]} 7. Bd3 {[%clk 0:04:52.8]} 7... O-O {[%clk 0:04:44.3]} 8. O-O {[%clk
0:04:49.5]} 8... Re8 {[%clk 0:04:41]} 9. Bg5 {[%clk 0:04:47.8]} 9... h6 {[%clk
0:04:39.1]} 10. Bh4 {[%clk 0:04:46]} 10... d6 {[%clk 0:04:38.4]} 11. Qf3 {[%clk
0:04:38.1]} 11... Bxc3 {[%clk 0:04:29.7]} 12. bxc3 {[%clk 0:04:36.2]} 12... a5
{[%clk 0:04:23.1]} 13. Bxf6 {[%clk 0:04:32]} 13... Qxf6 {[%clk 0:04:22.2]} 14.
Qxf6 {[%clk 0:04:29.7]} 14... gxf6 {[%clk 0:04:22.1]} 15. f4 {[%clk 0:04:28.2]}
15... Ba6 {[%clk 0:04:15.1]} 16. a4 {[%clk 0:04:25.5]} 16... d5 {[%clk
0:04:05.8]} 17. exd5 {[%clk 0:04:20]} 17... cxd5 {[%clk 0:04:04.5]} 18. Rf3
{[%clk 0:04:14.3]} 18... Bxd3 {[%clk 0:03:15.6]} 19. cxd3 {[%clk 0:04:10.2]}
19... Rab8 {[%clk 0:03:14.3]} 20. Rh3 {[%clk 0:03:46.2]} 20... Kh7 {[%clk
0:03:08.5]} 21. Rh5 {[%clk 0:03:44.2]} 21... c6 {[%clk 0:03:05.1]} 22. c4 {[%clk
0:03:41.6]} 22... Kg6 {[%clk 0:02:46]} 23. g4 {[%clk 0:03:39]} 23... Red8 {[%clk
0:02:25.9]} 24. h3 {[%clk 0:03:11.3]} 24... Rb3 {[%clk 0:02:20.7]} 25. cxd5
{[%clk 0:02:40.2]} 25... cxd5 {[%clk 0:02:09.2]} 26. d4 {[%clk 0:02:35.1]} 26...
Rb4 {[%clk 0:02:06.3]} 27. Kf2 {[%clk 0:02:23.8]} 27... Rxd4 {[%clk 0:02:04.3]}
28. Ke3 {[%clk 0:02:22.8]} 28... Re4+ {[%clk 0:02:00.8]} 29. Kf3 {[%clk
0:02:19.5]} 29... Rb4 {[%clk 0:01:59.7]} 30. Ke3 {[%clk 0:02:10.2]} 30... Rb3+
{[%clk 0:01:58.9]} 31. Kd4 {[%clk 0:02:07.9]} 31... Rb4+ {[%clk 0:01:56]} 32.
Kd3 {[%clk 0:02:02.9]} 32... Rxf4 {[%clk 0:01:51.7]} 33. Rf5 {[%clk 0:01:51.2]}
33... Rxf5 {[%clk 0:01:46.3]} 34. gxf5+ {[%clk 0:01:50.3]} 34... Kxf5 {[%clk
0:01:45.8]} 35. Rf1+ {[%clk 0:01:49.3]} 35... Kg6 {[%clk 0:01:39.3]} 36. Kd4
{[%clk 0:01:47]} 36... f5 {[%clk 0:01:36.2]} 37. Ke5 {[%clk 0:01:42.3]} 37... d4
{[%clk 0:01:32.4]} 38. Rg1+ {[%clk 0:01:40.6]} 38... Kh5 {[%clk 0:01:25.8]} 39.
Kxf5 {[%clk 0:01:38.8]} 39... d3 {[%clk 0:01:25.1]} 40. Rd1 {[%clk 0:01:37.8]}
40... Kh4 {[%clk 0:01:23.2]} 41. Kf4 {[%clk 0:01:29.9]} 41... d2 {[%clk
0:01:19.8]} 42. Kf3 {[%clk 0:01:24.3]} 42... h5 {[%clk 0:01:14.8]} 43. Ke2
{[%clk 0:01:17.5]} 43... Kxh3 {[%clk 0:01:13.9]} 44. Rh1+ {[%clk 0:01:12.5]}
44... Kg2 {[%clk 0:01:13.2]} 45. Rd1 {[%clk 0:01:10.6]} 45... h4 {[%clk
0:01:11.3]} 0-1

[Event "Live Chess"]
[Site "Chess.com"]
[Date "2024.06.01"]
[Round "-"]
[White "cymbalshift"]
[Black "MagnersCarlsberg2870"]
[Result "0-1"]
[WhiteElo "1675"]
[BlackElo "1763"]
[TimeControl "300"]
[EndTime "15:47:44 PDT"]
[Termination "MagnersCarlsberg2870 won by resignation"]

1. d4 {[%clk 0:04:57.9]} 1... Nf6 {[%clk 0:04:58.6]} 2. c4 {[%clk 0:04:55.9]}
2... e5 {[%clk 0:04:57.5]} 3. dxe5 {[%clk 0:04:54]} 3... Ne4 {[%clk 0:04:56.3]}
4. a3 {[%clk 0:04:49.9]} 4... b6 {[%clk 0:04:54.6]} 5. g3 {[%clk 0:04:48.1]}
5... Bb7 {[%clk 0:04:53]} 6. Bg2 {[%clk 0:04:47.6]} 6... Nc3 {[%clk 0:04:47.1]}
7. Bxb7 {[%clk 0:04:31.5]} 7... Nxd1 {[%clk 0:04:45]} 8. Bxa8 {[%clk 0:04:31.4]}
8... c6 {[%clk 0:04:31.5]} 9. Kxd1 {[%clk 0:04:26.7]} 9... d6 {[%clk 0:04:30.5]}
10. Nc3 {[%clk 0:04:07.2]} 10... dxe5+ {[%clk 0:04:29]} 11. Kc2 {[%clk 0:03:57]}
11... Bc5 {[%clk 0:04:26]} 12. e3 {[%clk 0:03:35.9]} 12... Qf6 {[%clk
0:04:24.2]} 13. Ne4 {[%clk 0:03:27.4]} 13... Qg6 {[%clk 0:04:19.8]} 14. f3
{[%clk 0:03:24.4]} 14... Nd7 {[%clk 0:04:11.2]} 15. Bxc6 {[%clk 0:03:21]} 15...
Qxc6 {[%clk 0:04:08.8]} 16. b4 {[%clk 0:03:16.4]} 16... Be7 {[%clk 0:04:02.1]}
17. Bb2 {[%clk 0:03:13.4]} 17... Qxc4+ {[%clk 0:04:00.8]} 18. Kd2 {[%clk
0:03:10.9]} 18... Nf6 {[%clk 0:03:57.4]} 19. Rc1 {[%clk 0:03:05.4]} 19... Nxe4+
{[%clk 0:03:54.6]} 20. fxe4 {[%clk 0:03:05.3]} 20... Qxe4 {[%clk 0:03:53.4]} 21.
Rc8+ {[%clk 0:03:02.8]} 21... Bd8 {[%clk 0:03:49.5]} 22. Ne2 {[%clk 0:02:58.1]}
22... Qxh1 {[%clk 0:03:47.8]} 23. Bxe5 {[%clk 0:02:57.7]} 23... O-O {[%clk
0:03:44.3]} 24. Bd6 {[%clk 0:02:53.1]} 24... Qd5+ {[%clk 0:03:36.9]} 0-1

[Event "Live Chess"]
[Site "Chess.com"]
[Date "2024.06.01"]
[Round "-"]
[White "Dhaydon19"]
[Black "CCGoodKnightRookie"]
[Result "1-0"]
[WhiteElo "2679"]
[BlackElo "2323"]
[TimeControl "300"]
[EndTime "15:48:12 PDT"]
[Termination "Dhaydon19 won by resignation"]

1. d4 {[%clk 0:04:58.7]} 1... Nf6 {[%clk 0:04:58.4]} 2. Nf3 {[%clk 0:04:58.2]}
2... d5 {[%clk 0:04:57.4]} 3. c3 {[%clk 0:04:56.7]} 3... Bf5 {[%clk 0:04:55.9]}
4. g3 {[%clk 0:04:56.1]} 4... e6 {[%clk 0:04:55.1]} 5. Bg2 {[%clk 0:04:55.6]}
5... Bd6 {[%clk 0:04:54.2]} 6. O-O {[%clk 0:04:55.3]} 6... O-O {[%clk
0:04:53.5]} 7. Bg5 {[%clk 0:04:54.7]} 7... Nbd7 {[%clk 0:04:52.4]} 8. Bxf6
{[%clk 0:04:54.4]} 8... Nxf6 {[%clk 0:04:51.3]} 9. Nbd2 {[%clk 0:04:54.1]} 9...
c5 {[%clk 0:04:50.7]} 10. Re1 {[%clk 0:04:52.2]} 10... Ne4 {[%clk 0:04:46.9]}
11. Nh4 {[%clk 0:04:50]} 11... Nxd2 {[%clk 0:04:44.4]} 12. Nxf5 {[%clk 0:04:47]}
12... exf5 {[%clk 0:04:41.7]} 13. Qxd2 {[%clk 0:04:45.6]} 13... cxd4 {[%clk
0:04:37.6]} 14. Qxd4 {[%clk 0:04:44.4]} 14... Qe7 {[%clk 0:04:17.8]} 15. Qxd5
{[%clk 0:04:42.6]} 15... g6 {[%clk 0:04:08.1]} 16. e3 {[%clk 0:04:41.6]} 16...
Rfd8 {[%clk 0:04:05.8]} 17. Qb3 {[%clk 0:04:39.2]} 17... Rab8 {[%clk 0:04:03.6]}
18. Rad1 {[%clk 0:04:38.2]} 18... b6 {[%clk 0:04:00.8]} 19. Rd5 {[%clk
0:04:36.2]} 19... Bc5 {[%clk 0:03:58]} 20. Qc4 {[%clk 0:04:32]} 20... Rxd5
{[%clk 0:03:56.6]} 21. Bxd5 {[%clk 0:04:30.6]} 21... Rd8 {[%clk 0:03:55.8]} 22.
b4 {[%clk 0:04:28.7]} 22... Bd6 {[%clk 0:03:50]} 23. Rd1 {[%clk 0:04:27.7]}
23... Kg7 {[%clk 0:03:48.3]} 24. Bf3 {[%clk 0:04:20.1]} 24... Be5 {[%clk
0:03:44.5]} 25. Rd3 {[%clk 0:04:15.6]} 25... Qc7 {[%clk 0:03:36.3]} 26. Qxc7
{[%clk 0:04:08.3]} 26... Bxc7 {[%clk 0:03:34.5]} 27. Rd4 {[%clk 0:03:58.5]}
27... Rxd4 {[%clk 0:03:32.9]} 28. exd4 {[%clk 0:03:55.5]} 28... Kf6 {[%clk
0:03:28.1]} 29. Kf1 {[%clk 0:03:53.6]} 29... Ke6 {[%clk 0:03:27.4]} 30. Ke2
{[%clk 0:03:53]} 30... Kd6 {[%clk 0:03:26.2]} 31. Kd3 {[%clk 0:03:52.6]} 31...
b5 {[%clk 0:03:16.4]} 32. Kc2 {[%clk 0:03:49.1]} 32... Bb6 {[%clk 0:03:10.1]}
33. Kb3 {[%clk 0:03:47.8]} 33... Bc7 {[%clk 0:03:07]} 34. a4 {[%clk 0:03:46.6]}
34... a6 {[%clk 0:03:00.5]} 35. a5 {[%clk 0:03:42.2]} 35... f4 {[%clk
0:02:50.5]} 36. Bb7 {[%clk 0:03:39]} 36... fxg3 {[%clk 0:02:49.3]} 37. hxg3
{[%clk 0:03:36.4]} 37... h5 {[%clk 0:02:44.7]} 38. Bxa6 {[%clk 0:03:34.4]} 38...
Kc6 {[%clk 0:02:41.2]} 39. d5+ {[%clk 0:03:30.6]} 39... Kxd5 {[%clk 0:02:39.7]}
40. Bxb5 {[%clk 0:03:30.3]} 40... Ke4 {[%clk 0:02:35.5]} 41. Be2 {[%clk
0:03:26.7]} 41... Bb8 {[%clk 0:02:30.1]} 42. c4 {[%clk 0:03:25.6]} 42... Kd4
{[%clk 0:02:28.8]} 43. c5 {[%clk 0:03:24.5]} 1-0

[Event "Live Chess"]
[Site "Chess.com"]
[Date "2024.06.01"]
[Round "-"]
[White "ShanthamGrarks"]
[Black "Duke_of_Bebington"]
[Result "0-1"]
[WhiteElo "1789"]
[BlackElo "1638"]
[TimeControl "300"]
[EndTime "15:48:35 PDT"]
[Termination "Duke_of_Bebington won by resignation"]

1. d4 {[%clk 0:04:56.8]} 1... d5 {[%clk 0:04:58.7]} 2. Nc3 {[%clk 0:04:55.4]}
2... Nf6 {[%clk 0:04:56.4]} 3. e4 {[%clk 0:04:54.6]} 3... Nxe4 {[%clk
0:04:49.9]} 4. f3 {[%clk 0:04:54.5]} 4... Nxc3 {[%clk 0:04:48.4]} 5. bxc3 {[%clk
0:04:53.3]} 5... e6 {[%clk 0:04:44]} 6. Bd3 {[%clk 0:04:52.2]} 6... Bd6 {[%clk
0:04:43.1]} 7. Ne2 {[%clk 0:04:49.9]} 7... O-O {[%clk 0:04:39.2]} 8. O-O {[%clk
0:04:46.7]} 8... Nc6 {[%clk 0:04:32.4]} 9. Bf4 {[%clk 0:04:44]} 9... Bxf4 {[%clk
0:04:15.3]} 10. Nxf4 {[%clk 0:04:42.3]} 10... Qf6 {[%clk 0:04:11.2]} 11. g3
{[%clk 0:04:35.5]} 11... Ne7 {[%clk 0:04:02.5]} 12. Nh5 {[%clk 0:04:29.2]} 12...
Qh6 {[%clk 0:04:00.2]} 13. f4 {[%clk 0:04:24.7]} 13... f5 {[%clk 0:03:52.1]} 14.
c4 {[%clk 0:04:15.9]} 14... c6 {[%clk 0:03:50.6]} 15. c5 {[%clk 0:04:13]} 15...
g6 {[%clk 0:03:40.7]} 16. Be2 {[%clk 0:04:08.8]} 16... gxh5 {[%clk 0:03:38.7]}
17. Bxh5 {[%clk 0:04:08.4]} 17... Ng6 {[%clk 0:03:35.3]} 18. Kf2 {[%clk
0:03:49.5]} 18... Qg7 {[%clk 0:03:23.6]} 19. Qf3 {[%clk 0:03:44.2]} 19... Qxd4+
{[%clk 0:03:20.3]} 20. Kg2 {[%clk 0:03:38]} 20... Qxc5 {[%clk 0:03:11.9]} 21.
Bxg6 {[%clk 0:03:35]} 21... hxg6 {[%clk 0:03:06.8]} 22. Rf2 {[%clk 0:03:32.2]}
22... b6 {[%clk 0:02:48.9]} 23. h4 {[%clk 0:03:30.2]} 23... Kg7 {[%clk
0:02:47.5]} 24. h5 {[%clk 0:03:29.1]} 24... Rh8 {[%clk 0:02:42.4]} 25. hxg6
{[%clk 0:03:27.4]} 25... Kxg6 {[%clk 0:02:39.1]} 26. g4 {[%clk 0:03:24.5]} 26...
Qf8 {[%clk 0:02:28.7]} 27. g5 {[%clk 0:03:18.1]} 27... Qg7 {[%clk 0:02:24.5]}
28. Re1 {[%clk 0:03:14.3]} 28... Qh7 {[%clk 0:02:21.7]} 29. Kf1 {[%clk
0:03:10.8]} 29... Qh1+ {[%clk 0:02:18.6]} 30. Ke2 {[%clk 0:03:06]} 30... Ba6+
{[%clk 0:02:13.7]} 31. Kd2 {[%clk 0:02:59.4]} 31... Qxf3 {[%clk 0:02:10.4]} 32.
Rxf3 {[%clk 0:02:58.3]} 32... Rh2+ {[%clk 0:02:09.1]} 33. Kc3 {[%clk 0:02:56.3]}
33... Re8 {[%clk 0:02:05]} 34. Rfe3 {[%clk 0:02:54.8]} 34... Bc8 {[%clk
0:02:03.9]} 35. R1e2 {[%clk 0:02:45]} 35... Rxe2 {[%clk 0:01:59.2]} 36. Rxe2
{[%clk 0:02:44.9]} 36... e5 {[%clk 0:01:56.4]} 37. fxe5 {[%clk 0:02:37.3]} 37...
Kxg5 {[%clk 0:01:54.5]} 38. Kd4 {[%clk 0:02:35.6]} 38... f4 {[%clk 0:01:51]} 39.
Rg2+ {[%clk 0:02:35]} 39... Bg4 {[%clk 0:01:48.9]} 40. c3 {[%clk 0:02:29.2]}
40... Kf5 {[%clk 0:01:44.9]} 41. Rh2 {[%clk 0:02:19.4]} 41... Rxe5 {[%clk
0:01:40]} 42. Rh7 {[%clk 0:02:16.1]} 42... c5+ {[%clk 0:01:33.4]} 43. Kd3 {[%clk
0:02:14.8]} 43... Re3+ {[%clk 0:01:29.1]} 44. Kd2 {[%clk 0:02:13.5]} 44... Re2+
{[%clk 0:01:27.9]} 45. Kc1 {[%clk 0:02:11.8]} 45... Rxa2 {[%clk 0:01:26.7]} 46.
Rf7+ {[%clk 0:02:10.2]} 46... Ke4 {[%clk 0:01:25.5]} 47. Re7+ {[%clk 0:02:09.1]}
47... Kf3 {[%clk 0:01:24.3]} 48. Rd7 {[%clk 0:02:06.8]} 48... Ke3 {[%clk
0:01:17.8]} 49. Re7+ {[%clk 0:02:04.2]} 49... Kd3 {[%clk 0:01:15.5]} 50. Kb1
{[%clk 0:02:03.3]} 50... Rf2 {[%clk 0:01:09.9]} 51. Rg7 {[%clk 0:02:01.3]} 51...
Bf5 {[%clk 0:01:05.8]} 52. Rf7 {[%clk 0:01:56.3]} 52... Be4 {[%clk 0:01:04.1]}
53. Kc1 {[%clk 0:01:52.6]} 53... Kxc3 {[%clk 0:00:59.7]} 54. Kd1 {[%clk
0:01:48.8]} 54... f3 {[%clk 0:00:51.8]} 55. Ke1 {[%clk 0:01:39.8]} 55... Re2+
{[%clk 0:00:49]} 56. Kf1 {[%clk 0:01:38.7]} 56... a5 {[%clk 0:00:43.4]} 57. Rc7
{[%clk 0:01:30.7]} 57... a4 {[%clk 0:00:40.3]} 58. Ra7 {[%clk 0:01:29.3]} 58...
Kb4 {[%clk 0:00:36.8]} 59. Ra6 {[%clk 0:01:26.6]} 59... b5 {[%clk 0:00:34.9]}
60. Rb6 {[%clk 0:01:24.4]} 60... a3 {[%clk 0:00:33.9]} 61. Ra6 {[%clk
0:01:23.5]} 61... a2 {[%clk 0:00:32.9]} 62. Ra7 {[%clk 0:01:22]} 62... Rb2
{[%clk 0:00:28.9]} 63. Ra6 {[%clk 0:01:08]} 63... Rb1+ {[%clk 0:00:28.2]} 64.
Kf2 {[%clk 0:01:04.9]} 64... a1=Q {[%clk 0:00:27.7]} 65. Ke3 {[%clk 0:01:04.1]}
65... Qd4+ {[%clk 0:00:25.4]} 66. Kf4 {[%clk 0:01:02.5]} 66... f2 {[%clk
0:00:22.1]} 67. Ra2 {[%clk 0:00:54.5]} 67... f1=Q+ {[%clk 0:00:22]} 68. Kg5
{[%clk 0:00:49.9]} 68... Qdg1+ {[%clk 0:00:21]} 69. Rg2 {[%clk 0:00:46.7]} 69...
Qfxg2+ {[%clk 0:00:20]} 0-1